[Event "*** Titled Tuesday Blitz"]
[Site "Chess.com"]
[Date "2021.03.09"]
[Round "1"]
[White "garicradomir"]
[Black "KruHor"]
[Result "1/2-1/2"]
[WhiteElo "2228"]
[BlackElo "2532"]
[TimeControl "180+1"]
[EndTime "10:07:43 PST"]
[Termination "Game drawn by repetition"]

1. e4 {[%clk 0:03:00.9]} 1... c5 {[%clk 0:02:58.9]} 2. Nf3 {[%clk 0:03:01]} 2...
e6 {[%clk 0:02:58.5]} 3. c3 {[%clk 0:02:59.9]} 3... d5 {[%clk 0:02:55.8]} 4.
exd5 {[%clk 0:02:59.8]} 4... exd5 {[%clk 0:02:55.4]} 5. d4 {[%clk 0:03:00.3]}
5... a6 {[%clk 0:02:55]} 6. Be3 {[%clk 0:02:59.9]} 6... c4 {[%clk 0:02:53.2]} 7.
b3 {[%clk 0:03:00.4]} 7... cxb3 {[%clk 0:02:51.7]} 8. axb3 {[%clk 0:03:00.1]}
8... Nc6 {[%clk 0:02:51.3]} 9. Bd3 {[%clk 0:03:00.1]} 9... Nf6 {[%clk
0:02:47.8]} 10. O-O {[%clk 0:02:58.2]} 10... Bd6 {[%clk 0:02:47.1]} 11. Nbd2
{[%clk 0:02:56.5]} 11... O-O {[%clk 0:02:46.4]} 12. h3 {[%clk 0:02:56.2]} 12...
Re8 {[%clk 0:02:42.2]} 13. Qc2 {[%clk 0:02:48.6]} 13... h6 {[%clk 0:02:32.2]}
14. Rae1 {[%clk 0:02:47.7]} 14... Be6 {[%clk 0:02:30.1]} 15. Re2 {[%clk
0:02:38]} 15... Rc8 {[%clk 0:02:28.9]} 16. Qb1 {[%clk 0:02:38.7]} 16... Qd7
{[%clk 0:02:16.3]} 17. Rfe1 {[%clk 0:02:37.7]} 17... Ne7 {[%clk 0:02:00.4]} 18.
c4 {[%clk 0:02:28.1]} 18... Bxh3 {[%clk 0:01:58.7]} 19. c5 {[%clk 0:02:09.9]}
19... Qg4 {[%clk 0:01:44.6]} 20. Nh4 {[%clk 0:02:07.1]} 20... Bb8 {[%clk
0:01:20.8]} 21. Ndf3 {[%clk 0:02:06.7]} 21... g5 {[%clk 0:01:16.1]} 22. Bxg5
{[%clk 0:01:15.6]} 22... hxg5 {[%clk 0:01:15]} 23. Rxe7 {[%clk 0:01:15.8]} 23...
Rxe7 {[%clk 0:01:03.9]} 24. Rxe7 {[%clk 0:01:16.7]} 24... gxh4 {[%clk
0:01:03.3]} 25. Ne1 {[%clk 0:01:12.7]} 25... Bxg2 {[%clk 0:00:53.4]} 26. Bf5
{[%clk 0:00:57.7]} 26... Qg5 {[%clk 0:00:44.2]} 27. Nxg2 {[%clk 0:00:54.9]}
27... Ne4 {[%clk 0:00:33.4]} 28. Rxe4 {[%clk 0:00:34.8]} 28... dxe4 {[%clk
0:00:24.8]} 29. Bxc8 {[%clk 0:00:34.9]} 29... e3 {[%clk 0:00:18.3]} 30. fxe3
{[%clk 0:00:33.6]} 30... Qg3 {[%clk 0:00:18.1]} 31. Qf5 {[%clk 0:00:30.8]} 31...
Qh2+ {[%clk 0:00:16.8]} 32. Kf1 {[%clk 0:00:30.4]} 32... Qh1+ {[%clk 0:00:16.5]}
33. Kf2 {[%clk 0:00:29.5]} 33... Bg3+ {[%clk 0:00:16.2]} 34. Kf3 {[%clk
0:00:27.6]} 34... Qf1+ {[%clk 0:00:15.6]} 35. Kg4 {[%clk 0:00:27.7]} 35... Qxg2
{[%clk 0:00:15.3]} 36. Qg5+ {[%clk 0:00:27.1]} 36... Kf8 {[%clk 0:00:15]} 37.
Qd8+ {[%clk 0:00:26.9]} 37... Kg7 {[%clk 0:00:15]} 38. Qg5+ {[%clk 0:00:25]}
38... Kf8 {[%clk 0:00:14.9]} 39. Qh6+ {[%clk 0:00:24.2]} 39... Ke7 {[%clk
0:00:14.3]} 40. Qg5+ {[%clk 0:00:17.9]} 40... Ke8 {[%clk 0:00:13.8]} 41. Kh5
{[%clk 0:00:14.8]} 41... Qf3+ {[%clk 0:00:11.8]} 42. Bg4 {[%clk 0:00:12.8]}
42... Qc6 {[%clk 0:00:09.6]} 43. Qg8+ {[%clk 0:00:11.8]} 43... Ke7 {[%clk
0:00:09.2]} 44. Qg5+ {[%clk 0:00:10.3]} 44... Kf8 {[%clk 0:00:09.3]} 45. Qd8+
{[%clk 0:00:09.7]} 45... Kg7 {[%clk 0:00:09.4]} 46. Qg5+ {[%clk 0:00:09.4]}
46... Kf8 {[%clk 0:00:09.4]} 47. Qd8+ {[%clk 0:00:08.5]} 47... Kg7 {[%clk
0:00:09.6]} 48. Qg5+ {[%clk 0:00:08.5]} 48... Kf8 {[%clk 0:00:09.3]} 1/2-1/2

[Event "*** Titled Tuesday Blitz"]
[Site "Chess.com"]
[Date "2021.03.09"]
[Round "1"]
[White "Fiona"]
[Black "OriTaichman"]
[Result "0-1"]
[WhiteElo "2202"]
[BlackElo "2531"]
[TimeControl "180+1"]
[EndTime "10:07:44 PST"]
[Termination "OriTaichman won on time"]

1. e4 {[%clk 0:02:59.7]} 1... c5 {[%clk 0:02:59.5]} 2. Nc3 {[%clk 0:02:59]} 2...
Nc6 {[%clk 0:02:59.5]} 3. f4 {[%clk 0:02:59]} 3... g6 {[%clk 0:02:59.3]} 4. Nf3
{[%clk 0:02:57.5]} 4... Bg7 {[%clk 0:02:59.4]} 5. Bb5 {[%clk 0:02:57]} 5... Nd4
{[%clk 0:02:59.5]} 6. O-O {[%clk 0:02:57.4]} 6... Nxb5 {[%clk 0:02:59.4]} 7.
Nxb5 {[%clk 0:02:58.3]} 7... d5 {[%clk 0:02:59.8]} 8. e5 {[%clk 0:02:57.5]} 8...
Bg4 {[%clk 0:02:05.5]} 9. h3 {[%clk 0:02:49.5]} 9... Bxf3 {[%clk 0:02:04.6]} 10.
Qxf3 {[%clk 0:02:50.4]} 10... a6 {[%clk 0:02:05]} 11. Nc3 {[%clk 0:02:49.7]}
11... e6 {[%clk 0:02:05.3]} 12. d3 {[%clk 0:02:43.3]} 12... Ne7 {[%clk
0:01:59.8]} 13. Bd2 {[%clk 0:02:28.9]} 13... h5 {[%clk 0:01:54]} 14. Kh2 {[%clk
0:02:25.4]} 14... h4 {[%clk 0:01:51.5]} 15. Ne2 {[%clk 0:02:21]} 15... Qc7
{[%clk 0:01:42.4]} 16. c3 {[%clk 0:02:20.9]} 16... Nf5 {[%clk 0:01:34.8]} 17. d4
{[%clk 0:02:20.9]} 17... c4 {[%clk 0:01:16.3]} 18. g4 {[%clk 0:02:09.5]} 18...
hxg3+ {[%clk 0:01:16.1]} 19. Nxg3 {[%clk 0:02:09.5]} 19... Kd7 {[%clk
0:01:08.2]} 20. Nxf5 {[%clk 0:02:05.5]} 20... gxf5 {[%clk 0:01:07.3]} 21. Rg1
{[%clk 0:02:03.9]} 21... Rag8 {[%clk 0:01:07.3]} 22. Rg3 {[%clk 0:02:02.3]}
22... Qb6 {[%clk 0:00:56.5]} 23. Rb1 {[%clk 0:01:43]} 23... Bf8 {[%clk 0:00:45]}
24. Qg2 {[%clk 0:01:24.1]} 24... Rxg3 {[%clk 0:00:44.1]} 25. Qxg3 {[%clk
0:01:25]} 25... Qa5 {[%clk 0:00:39.3]} 26. a3 {[%clk 0:01:12.9]} 26... Qa4
{[%clk 0:00:39.4]} 27. Qe1 {[%clk 0:01:09.4]} 27... Qc2 {[%clk 0:00:38.4]} 28.
Rc1 {[%clk 0:00:44.9]} 28... Qxb2 {[%clk 0:00:36.3]} 29. Rb1 {[%clk 0:00:43.2]}
29... Qc2 {[%clk 0:00:36.7]} 30. Rxb7+ {[%clk 0:00:36.1]} 30... Kc6 {[%clk
0:00:35.6]} 31. Rb1 {[%clk 0:00:36]} 31... Qd3 {[%clk 0:00:35.3]} 32. Be3 {[%clk
0:00:34.7]} 32... Bxa3 {[%clk 0:00:32.3]} 33. Ra1 {[%clk 0:00:21.4]} 33... Bb2
{[%clk 0:00:22.9]} 34. Rxa6+ {[%clk 0:00:18.4]} 34... Kb5 {[%clk 0:00:21.8]} 35.
Ra2 {[%clk 0:00:14.1]} 35... Bxc3 {[%clk 0:00:22.1]} 36. Qf2 {[%clk 0:00:14.7]}
36... Bxd4 {[%clk 0:00:20]} 37. Re2 {[%clk 0:00:09.9]} 37... Bxe3 {[%clk
0:00:19.2]} 38. Rxe3 {[%clk 0:00:10.8]} 38... Qb1 {[%clk 0:00:16.4]} 39. Re1
{[%clk 0:00:09.3]} 39... Qb4 {[%clk 0:00:15.2]} 40. Re2 {[%clk 0:00:08.2]} 40...
c3 {[%clk 0:00:13.7]} 41. Rc2 {[%clk 0:00:06.2]} 41... Rg8 {[%clk 0:00:13]} 42.
Qe2+ {[%clk 0:00:06.2]} 42... Qc4 {[%clk 0:00:13.2]} 43. Qe3 {[%clk 0:00:04.4]}
43... d4 {[%clk 0:00:12.8]} 44. Qf3 {[%clk 0:00:03.2]} 44... Qd5 {[%clk
0:00:13.2]} 45. Qe2+ {[%clk 0:00:02.2]} 45... d3 {[%clk 0:00:13.7]} 0-1

[Event "*** Titled Tuesday Blitz"]
[Site "Chess.com"]
[Date "2021.03.09"]
[Round "1"]
[White "Synctel"]
[Black "Cherone"]
[Result "0-1"]
[WhiteElo "2009"]
[BlackElo "2494"]
[TimeControl "180+1"]
[EndTime "10:07:46 PST"]
[Termination "Cherone won on time"]

1. e4 {[%clk 0:02:57.9]} 1... d6 {[%clk 0:02:59.9]} 2. Nc3 {[%clk 0:02:48]} 2...
Nf6 {[%clk 0:02:56.6]} 3. d4 {[%clk 0:02:37.1]} 3... e5 {[%clk 0:02:54.9]} 4.
Nf3 {[%clk 0:02:35.1]} 4... Nbd7 {[%clk 0:02:54.6]} 5. dxe5 {[%clk 0:02:29.7]}
5... dxe5 {[%clk 0:02:52]} 6. Bc4 {[%clk 0:02:23.2]} 6... Bb4 {[%clk 0:02:51.9]}
7. O-O {[%clk 0:02:12.7]} 7... O-O {[%clk 0:02:51.8]} 8. Nd5 {[%clk 0:02:10.9]}
8... Nxd5 {[%clk 0:02:45.9]} 9. Bxd5 {[%clk 0:02:08.4]} 9... c6 {[%clk
0:02:41.7]} 10. Bb3 {[%clk 0:02:03.1]} 10... Qc7 {[%clk 0:02:34.2]} 11. c3
{[%clk 0:01:59.2]} 11... Be7 {[%clk 0:02:33.3]} 12. h3 {[%clk 0:01:55.6]} 12...
Nc5 {[%clk 0:02:31.6]} 13. Bc2 {[%clk 0:01:55]} 13... a5 {[%clk 0:02:31.3]} 14.
Bg5 {[%clk 0:01:01.9]} 14... Bxg5 {[%clk 0:02:26.1]} 15. Nxg5 {[%clk 0:01:01.5]}
15... f6 {[%clk 0:02:05.5]} 16. Nf3 {[%clk 0:01:00.8]} 16... Be6 {[%clk
0:02:03]} 17. Qe2 {[%clk 0:00:57.6]} 17... b5 {[%clk 0:01:58.3]} 18. Rfd1 {[%clk
0:00:55.9]} 18... Rfd8 {[%clk 0:01:55.6]} 19. Qe3 {[%clk 0:00:55.4]} 19... Nd7
{[%clk 0:01:39.1]} 20. b3 {[%clk 0:00:52.4]} 20... Nf8 {[%clk 0:01:38.4]} 21.
Qc5 {[%clk 0:00:42.4]} 21... Bf7 {[%clk 0:01:30.5]} 22. Bd3 {[%clk 0:00:40.9]}
22... Ne6 {[%clk 0:01:28.9]} 23. Qe3 {[%clk 0:00:41.1]} 23... Nf4 {[%clk
0:01:27]} 24. Bf1 {[%clk 0:00:41.7]} 24... a4 {[%clk 0:01:26.9]} 25. c4 {[%clk
0:00:36]} 25... axb3 {[%clk 0:00:43.9]} 26. axb3 {[%clk 0:00:35.7]} 26... bxc4
{[%clk 0:00:42.7]} 27. Bxc4 {[%clk 0:00:34.9]} 27... Bxc4 {[%clk 0:00:39.5]} 28.
bxc4 {[%clk 0:00:35.8]} 28... Ne6 {[%clk 0:00:35]} 29. Rxa8 {[%clk 0:00:25.2]}
29... Rxa8 {[%clk 0:00:34.2]} 30. Qb3 {[%clk 0:00:16.4]} 30... c5 {[%clk
0:00:31.5]} 31. Qb5 {[%clk 0:00:15.6]} 31... Nd4 {[%clk 0:00:29.1]} 32. Nxd4
{[%clk 0:00:13.6]} 32... cxd4 {[%clk 0:00:30]} 33. c5 {[%clk 0:00:12.8]} 33...
Rc8 {[%clk 0:00:29]} 34. Rc1 {[%clk 0:00:10.6]} 34... Qc6 {[%clk 0:00:28.7]} 35.
Qc4+ {[%clk 0:00:10.5]} 35... Kh8 {[%clk 0:00:28.7]} 36. f3 {[%clk 0:00:10.9]}
36... h6 {[%clk 0:00:27]} 37. Kh2 {[%clk 0:00:09.9]} 37... Kh7 {[%clk
0:00:26.7]} 38. Kh1 {[%clk 0:00:09]} 38... Rb8 {[%clk 0:00:26.8]} 39. Qd5 {[%clk
0:00:05.9]} 39... Rc8 {[%clk 0:00:20.2]} 40. Qxc6 {[%clk 0:00:03.8]} 40... Rxc6
{[%clk 0:00:20.1]} 41. Kg1 {[%clk 0:00:04.4]} 41... Kg8 {[%clk 0:00:20.8]} 42.
Kf2 {[%clk 0:00:04.9]} 42... Kf7 {[%clk 0:00:21.7]} 43. Ke2 {[%clk 0:00:05.5]}
43... Ke6 {[%clk 0:00:22.4]} 44. Kd3 {[%clk 0:00:05.3]} 44... Kd7 {[%clk
0:00:17.4]} 45. Kc4 {[%clk 0:00:05]} 45... Ra6 {[%clk 0:00:17.1]} 46. Kd5 {[%clk
0:00:05.3]} 46... Ra2 {[%clk 0:00:15.4]} 47. c6+ {[%clk 0:00:05.6]} 47... Kc7
{[%clk 0:00:15.5]} 48. Rb1 {[%clk 0:00:06.1]} 48... Ra5+ {[%clk 0:00:15.2]} 49.
Ke6 {[%clk 0:00:04.5]} 49... Kxc6 {[%clk 0:00:11.5]} 0-1

[Event "*** Titled Tuesday Blitz"]
[Site "Chess.com"]
[Date "2021.03.09"]
[Round "1"]
[White "ShahMatKanal"]
[Black "jraosam"]
[Result "1-0"]
[WhiteElo "2490"]
[BlackElo "1888"]
[TimeControl "180+1"]
[EndTime "10:07:47 PST"]
[Termination "ShahMatKanal won by resignation"]

1. e4 {[%clk 0:02:59.1]} 1... e6 {[%clk 0:02:59.3]} 2. d4 {[%clk 0:02:57.8]}
2... d5 {[%clk 0:02:57.1]} 3. exd5 {[%clk 0:02:52.9]} 3... exd5 {[%clk 0:02:55]}
4. Bd3 {[%clk 0:02:53.8]} 4... c6 {[%clk 0:02:54.2]} 5. Ne2 {[%clk 0:02:53.2]}
5... Be6 {[%clk 0:02:54.3]} 6. O-O {[%clk 0:02:53]} 6... Bd6 {[%clk 0:02:54.7]}
7. Nf4 {[%clk 0:02:52.3]} 7... Nf6 {[%clk 0:02:53.2]} 8. Nxe6 {[%clk 0:02:52.4]}
8... fxe6 {[%clk 0:02:53.9]} 9. Nd2 {[%clk 0:02:46]} 9... O-O {[%clk 0:02:53.1]}
10. Nf3 {[%clk 0:02:46.2]} 10... Nbd7 {[%clk 0:02:50.9]} 11. Bg5 {[%clk
0:02:44.6]} 11... e5 {[%clk 0:02:48.8]} 12. dxe5 {[%clk 0:02:44.9]} 12... Nxe5
{[%clk 0:02:48.3]} 13. Nxe5 {[%clk 0:02:45.8]} 13... Bxe5 {[%clk 0:02:48.3]} 14.
c3 {[%clk 0:02:46.3]} 14... h6 {[%clk 0:02:40.7]} 15. Bh4 {[%clk 0:02:45.8]}
15... Qd6 {[%clk 0:02:37.1]} 16. Bg3 {[%clk 0:02:37.4]} 16... Bxg3 {[%clk
0:02:34.5]} 17. hxg3 {[%clk 0:02:38.3]} 17... Rad8 {[%clk 0:02:29.1]} 18. Qb3
{[%clk 0:02:33.4]} 18... b6 {[%clk 0:02:24.4]} 19. Rae1 {[%clk 0:02:32.3]} 19...
c5 {[%clk 0:02:23.7]} 20. Qa4 {[%clk 0:02:26.9]} 20... Qd7 {[%clk 0:02:19.8]}
21. Qh4 {[%clk 0:02:15.5]} 21... d4 {[%clk 0:02:14.6]} 22. c4 {[%clk 0:01:48.6]}
22... Rfe8 {[%clk 0:02:10.8]} 23. Qf4 {[%clk 0:01:42.4]} 23... Rxe1 {[%clk
0:02:06.8]} 24. Rxe1 {[%clk 0:01:43.3]} 24... Re8 {[%clk 0:02:05.7]} 25. Rxe8+
{[%clk 0:01:37.2]} 25... Qxe8 {[%clk 0:02:06.6]} 26. Qf5 {[%clk 0:01:37]} 26...
Qe1+ {[%clk 0:02:00]} 27. Kh2 {[%clk 0:01:36.9]} 27... h5 {[%clk 0:01:52.6]} 28.
f3 {[%clk 0:01:28.2]} 28... Qe3 {[%clk 0:01:45.9]} 29. Qg6 {[%clk 0:01:06.2]}
29... Qe8 {[%clk 0:01:36.9]} 30. Qg5 {[%clk 0:00:54.2]} 30... Qe7 {[%clk
0:01:31.1]} 31. Qf4 {[%clk 0:00:46.6]} 31... Qe6 {[%clk 0:01:22.3]} 32. Bf5
{[%clk 0:00:40.1]} 32... Qxc4 {[%clk 0:01:19.8]} 33. Qb8+ {[%clk 0:00:38.6]}
33... Kf7 {[%clk 0:01:16.6]} 34. Qxa7+ {[%clk 0:00:37.4]} 34... Kf8 {[%clk
0:01:15.6]} 35. Qb8+ {[%clk 0:00:33]} 35... Ne8 {[%clk 0:01:12.3]} 36. Qxb6
{[%clk 0:00:29.2]} 36... Qd5 {[%clk 0:01:03.9]} 37. Be4 {[%clk 0:00:28.4]} 37...
Qe5 {[%clk 0:01:02.4]} 38. Qd8 {[%clk 0:00:23.1]} 38... h4 {[%clk 0:01:01.2]}
39. Qxh4 {[%clk 0:00:21.9]} 39... Nf6 {[%clk 0:00:59.1]} 40. a4 {[%clk 0:00:19]}
40... c4 {[%clk 0:00:57.7]} 41. Qh8+ {[%clk 0:00:16.7]} 41... Kf7 {[%clk
0:00:55.5]} 42. Qc8 {[%clk 0:00:16.4]} 42... c3 {[%clk 0:00:51]} 43. bxc3 {[%clk
0:00:15.2]} 43... dxc3 {[%clk 0:00:51.9]} 44. Qc4+ {[%clk 0:00:13.5]} 44... Kf8
{[%clk 0:00:47.4]} 45. Bg6 {[%clk 0:00:12.6]} 45... Nd5 {[%clk 0:00:23.5]} 46.
Qc5+ {[%clk 0:00:09.7]} 46... Ne7 {[%clk 0:00:19.4]} 47. Qxe5 {[%clk 0:00:09.3]}
47... c2 {[%clk 0:00:15.5]} 48. Qb8+ {[%clk 0:00:07.3]} 1-0

[Event "*** Titled Tuesday Blitz"]
[Site "Chess.com"]
[Date "2021.03.09"]
[Round "1"]
[White "enriquetejedor"]
[Black "PetrolulSah"]
[Result "1-0"]
[WhiteElo "2522"]
[BlackElo "2174"]
[TimeControl "180+1"]
[EndTime "10:07:48 PST"]
[Termination "enriquetejedor won by checkmate"]

1. e4 {[%clk 0:02:44.2]} 1... e5 {[%clk 0:02:59.2]} 2. Nf3 {[%clk 0:02:36.6]}
2... Nc6 {[%clk 0:02:59.2]} 3. d4 {[%clk 0:02:31]} 3... exd4 {[%clk 0:02:57.4]}
4. Bc4 {[%clk 0:02:24.3]} 4... Nf6 {[%clk 0:02:56.3]} 5. O-O {[%clk 0:02:16.9]}
5... Bc5 {[%clk 0:02:45.8]} 6. e5 {[%clk 0:02:15.6]} 6... d5 {[%clk 0:02:45]} 7.
Bb5 {[%clk 0:02:14.8]} 7... Ne4 {[%clk 0:02:41.6]} 8. Nxd4 {[%clk 0:02:14.9]}
8... Bd7 {[%clk 0:02:30.5]} 9. Bxc6 {[%clk 0:02:14.5]} 9... bxc6 {[%clk
0:02:28.7]} 10. f3 {[%clk 0:02:15.4]} 10... Ng5 {[%clk 0:02:24]} 11. Be3 {[%clk
0:02:13.9]} 11... Ne6 {[%clk 0:02:15.5]} 12. Qd2 {[%clk 0:02:07.8]} 12... Qb8
{[%clk 0:02:10.6]} 13. Nb3 {[%clk 0:01:55.6]} 13... Bxe3+ {[%clk 0:01:47.6]} 14.
Qxe3 {[%clk 0:01:54.8]} 14... O-O {[%clk 0:01:43.1]} 15. f4 {[%clk 0:01:48.7]}
15... f5 {[%clk 0:01:40.3]} 16. Nc3 {[%clk 0:01:44.1]} 16... Qb6 {[%clk
0:01:39.5]} 17. Qxb6 {[%clk 0:01:10.7]} 17... cxb6 {[%clk 0:01:28.4]} 18. h4
{[%clk 0:01:11.6]} 18... d4 {[%clk 0:01:20.4]} 19. Ne2 {[%clk 0:01:11.1]} 19...
c5 {[%clk 0:01:18.7]} 20. c4 {[%clk 0:01:07.8]} 20... Bc6 {[%clk 0:01:05.7]} 21.
g3 {[%clk 0:00:57.8]} 21... Be4 {[%clk 0:00:51]} 22. Rad1 {[%clk 0:00:54.9]}
22... a6 {[%clk 0:00:41.9]} 23. Nec1 {[%clk 0:00:42.2]} 23... b5 {[%clk
0:00:27.3]} 24. Nd2 {[%clk 0:00:39.5]} 24... Rab8 {[%clk 0:00:19]} 25. b3 {[%clk
0:00:36.9]} 25... Rfd8 {[%clk 0:00:15.8]} 26. Rde1 {[%clk 0:00:32.4]} 26... d3
{[%clk 0:00:15.1]} 27. Re3 {[%clk 0:00:17.9]} 27... Nd4 {[%clk 0:00:14.3]} 28.
g4 {[%clk 0:00:10.6]} 28... Nc2 {[%clk 0:00:14.3]} 29. Rg3 {[%clk 0:00:10.1]}
29... b4 {[%clk 0:00:12.5]} 30. gxf5 {[%clk 0:00:04.8]} 30... Bxf5 {[%clk
0:00:12.4]} 31. Rg5 {[%clk 0:00:05]} 31... g6 {[%clk 0:00:11.6]} 32. h5 {[%clk
0:00:04.7]} 32... Kf7 {[%clk 0:00:11.7]} 33. Rf3 {[%clk 0:00:03.1]} 33... a5
{[%clk 0:00:10.8]} 34. h6 {[%clk 0:00:02.7]} 34... a4 {[%clk 0:00:09.8]} 35.
bxa4 {[%clk 0:00:02.6]} 35... Ra8 {[%clk 0:00:09.6]} 36. Ncb3 {[%clk 0:00:02.4]}
36... Rdc8 {[%clk 0:00:07.3]} 37. a5 {[%clk 0:00:02.7]} 37... Nd4 {[%clk
0:00:06.2]} 38. Nxd4 {[%clk 0:00:02.4]} 38... cxd4 {[%clk 0:00:05.8]} 39. Nb3
{[%clk 0:00:02.1]} 39... Rxc4 {[%clk 0:00:01.9]} 40. Rxf5+ {[%clk 0:00:02.6]}
40... gxf5 {[%clk 0:00:01.2]} 41. Rxd3 {[%clk 0:00:03.3]} 41... Rc2 {[%clk
0:00:01.2]} 42. Rxd4 {[%clk 0:00:02.9]} 42... Rxa2 {[%clk 0:00:01.2]} 43. Rd7+
{[%clk 0:00:03.5]} 43... Ke6 {[%clk 0:00:01.2]} 44. Nc5# {[%clk 0:00:03.7]} 1-0

[Event "*** Titled Tuesday Blitz"]
[Site "Chess.com"]
[Date "2021.03.09"]
[Round "1"]
[White "Vyacheslav_N"]
[Black "Gahan-MG"]
[Result "0-1"]
[WhiteElo "2360"]
[BlackElo "2669"]
[TimeControl "180+1"]
[EndTime "10:07:50 PST"]
[Termination "Gahan-MG won by resignation"]

1. f4 {[%clk 0:02:55.2]} 1... e5 {[%clk 0:02:58.6]} 2. fxe5 {[%clk 0:02:53.9]}
2... Nc6 {[%clk 0:02:56.8]} 3. Nf3 {[%clk 0:02:49.7]} 3... Bc5 {[%clk 0:02:56]}
4. c3 {[%clk 0:02:41.3]} 4... d6 {[%clk 0:02:55.9]} 5. d4 {[%clk 0:02:40.4]}
5... Bb6 {[%clk 0:02:56]} 6. exd6 {[%clk 0:02:39.1]} 6... cxd6 {[%clk
0:02:56.9]} 7. e4 {[%clk 0:02:39.3]} 7... Nf6 {[%clk 0:02:55.1]} 8. Bd3 {[%clk
0:02:39.3]} 8... O-O {[%clk 0:02:50.8]} 9. O-O {[%clk 0:02:39.4]} 9... h6 {[%clk
0:02:48.2]} 10. Kh1 {[%clk 0:02:29.6]} 10... Re8 {[%clk 0:02:44.8]} 11. Nbd2
{[%clk 0:02:28]} 11... Bc7 {[%clk 0:02:30.5]} 12. d5 {[%clk 0:02:14.2]} 12...
Ne5 {[%clk 0:02:28.6]} 13. Nxe5 {[%clk 0:02:14.4]} 13... Rxe5 {[%clk 0:02:29.5]}
14. Nc4 {[%clk 0:02:06.5]} 14... Bg4 {[%clk 0:02:25.6]} 15. Qd2 {[%clk
0:01:58.4]} 15... Rh5 {[%clk 0:02:17.7]} 16. Qf4 {[%clk 0:01:55.2]} 16... Qe7
{[%clk 0:01:58.5]} 17. Qg3 {[%clk 0:01:41]} 17... Bd7 {[%clk 0:01:48.8]} 18. Nd2
{[%clk 0:01:13.2]} 18... Ng4 {[%clk 0:01:47.3]} 19. Nf3 {[%clk 0:01:09.9]} 19...
Bb6 {[%clk 0:01:40.2]} 20. h3 {[%clk 0:01:05.1]} 20... Re8 {[%clk 0:01:31.7]}
21. Bf4 {[%clk 0:00:58.2]} 21... Ne5 {[%clk 0:01:23.7]} 22. Nxe5 {[%clk
0:00:52.7]} 22... dxe5 {[%clk 0:01:24.6]} 23. Bd2 {[%clk 0:00:52.1]} 23... Qd8
{[%clk 0:01:05.5]} 24. Qf3 {[%clk 0:00:48.4]} 24... Rh4 {[%clk 0:00:50.9]} 25.
Qxf7+ {[%clk 0:00:46.2]} 25... Kh8 {[%clk 0:00:49.6]} 26. Rf3 {[%clk 0:00:36.7]}
26... Bc5 {[%clk 0:00:38.9]} 27. Raf1 {[%clk 0:00:35.2]} 27... Kh7 {[%clk
0:00:35.3]} 28. Rg3 {[%clk 0:00:29.8]} 28... Rg8 {[%clk 0:00:35.1]} 29. Qg6+
{[%clk 0:00:23.2]} 29... Kh8 {[%clk 0:00:35.4]} 30. b4 {[%clk 0:00:18.7]} 30...
Be8 {[%clk 0:00:27.6]} 31. Qe6 {[%clk 0:00:17.1]} 31... Bd7 {[%clk 0:00:23.1]}
32. Qxe5 {[%clk 0:00:16.4]} 32... Be7 {[%clk 0:00:21]} 33. Qd4 {[%clk
0:00:15.5]} 33... Bf6 {[%clk 0:00:20]} 34. Qe3 {[%clk 0:00:14.5]} 34... Bg5
{[%clk 0:00:19.6]} 35. Qe2 {[%clk 0:00:14.1]} 35... Bxd2 {[%clk 0:00:17.2]} 36.
Qxd2 {[%clk 0:00:15]} 36... Qc7 {[%clk 0:00:16.9]} 37. Qe3 {[%clk 0:00:15]}
37... Qe5 {[%clk 0:00:16.9]} 38. Rgf3 {[%clk 0:00:14.2]} 38... Qxc3 {[%clk
0:00:16.6]} 39. Bb1 {[%clk 0:00:14.4]} 39... Qxb4 {[%clk 0:00:16.5]} 40. Rf7
{[%clk 0:00:14]} 40... Be8 {[%clk 0:00:15.8]} 41. e5 {[%clk 0:00:14]} 41... Bxf7
{[%clk 0:00:15.5]} 42. Rxf7 {[%clk 0:00:14.9]} 42... Qxb1+ {[%clk 0:00:15.1]}
43. Kh2 {[%clk 0:00:15.5]} 43... Qg6 {[%clk 0:00:12.7]} 44. e6 {[%clk 0:00:15]}
44... Rb4 {[%clk 0:00:10.1]} 45. d6 {[%clk 0:00:13.8]} 45... Rb2 {[%clk
0:00:09.8]} 46. Qg3 {[%clk 0:00:12.9]} 46... Qxe6 {[%clk 0:00:09.5]} 47. Re7
{[%clk 0:00:11.7]} 47... Qf6 {[%clk 0:00:09.2]} 48. Re4 {[%clk 0:00:08.7]} 48...
Rd2 {[%clk 0:00:09.2]} 49. Rg4 {[%clk 0:00:08.7]} 49... Qxd6 {[%clk 0:00:09.2]}
0-1